[Event "Titled Tuesday Blitz April 19 Early 2022"]
[White "Aaditya Dhingra"]
[Black "Oparin, Grigoriy"]
[WhiteFideId "25678191"]
[BlackFideId "24125890"]
[WhiteElo "1849"]
[BlackElo "2665"]
[Result "0-1"]
[Round "01"]
[TimeControl "180+1"]
[Date "2022.04.19"]
[WhiteClock "0:00:01"]
[BlackClock "0:01:51"]

1. e4 {[%clk 0:02:59]}  c6 {[%clk 0:02:59]} 2. Nf3 {[%clk 0:02:57]}  d5 {[%clk 0:03:00]} 3. Nc3 {[%clk 0:02:57]}  dxe4 {[%clk 0:03:00]} 4. Nxe4 {[%clk 0:02:57]}  Nf6 {[%clk 0:03:00]} 5. Qe2 {[%clk 0:02:57]}  Na6 {[%clk 0:02:59]} 6. d4 {[%clk 0:02:47]}  Nxe4 {[%clk 0:02:55]} 7. Qxe4 {[%clk 0:02:47]}  Qd5 {[%clk 0:02:56]} 8. Qxd5 {[%clk 0:02:21]}  cxd5 {[%clk 0:02:57]} 9. Bf4 {[%clk 0:02:19]}  e6 {[%clk 0:02:56]} 10. Kd2 {[%clk 0:02:03]}  Nb4 {[%clk 0:02:51]} 11. c3 {[%clk 0:01:59]}  Nc6 {[%clk 0:02:51]} 12. Bd3 {[%clk 0:01:58]}  Bd7 {[%clk 0:02:50]} 13. b4 {[%clk 0:01:56]}  a5 {[%clk 0:02:33]} 14. b5 {[%clk 0:01:55]}  Na7 {[%clk 0:02:34]} 15. a4 {[%clk 0:01:54]}  Nc8 {[%clk 0:02:34]} 16. Rac1 {[%clk 0:01:20]}  Bd6 {[%clk 0:02:31]} 17. Bxd6 {[%clk 0:01:09]}  Nxd6 {[%clk 0:02:32]} 18. c4 {[%clk 0:01:09]}  dxc4 {[%clk 0:02:30]} 19. Bxc4 {[%clk 0:01:09]}  Ke7 {[%clk 0:02:30]} 20. Bb3 {[%clk 0:01:05]}  Rhc8 {[%clk 0:02:29]} 21. Ne5 {[%clk 0:01:02]}  Be8 {[%clk 0:02:23]} 22. f3 {[%clk 0:00:58]}  Nf5 {[%clk 0:02:17]} 23. Kd3 {[%clk 0:00:52]}  Nd6 {[%clk 0:02:13]} 24. Nc4 {[%clk 0:00:28]}  Nxc4 {[%clk 0:02:12]} 25. Rxc4 {[%clk 0:00:24]}  Rxc4 {[%clk 0:02:12]} 26. Bxc4 {[%clk 0:00:25]}  Kd6 {[%clk 0:02:12]} 27. Rc1 {[%clk 0:00:21]}  Rc8 {[%clk 0:02:12]} 28. Rc3 {[%clk 0:00:20]}  b6 {[%clk 0:02:07]} 29. Bb3 {[%clk 0:00:20]}  Rd8 {[%clk 0:02:07]} 30. Ke3 {[%clk 0:00:20]}  Bd7 {[%clk 0:02:08]} 31. Bc2 {[%clk 0:00:19]}  h6 {[%clk 0:02:01]} 32. Be4 {[%clk 0:00:19]}  g5 {[%clk 0:02:00]} 33. f4 {[%clk 0:00:17]}  f6 {[%clk 0:01:56]} 34. g3 {[%clk 0:00:16]}  Rg8 {[%clk 0:01:54]} 35. Rd3 {[%clk 0:00:13]}  Rc8 {[%clk 0:01:52]} 36. Kd2 {[%clk 0:00:10]}  Rc4 {[%clk 0:01:51]} 37. Ra3 {[%clk 0:00:05]}  Rxd4+ {[%clk 0:01:51]} 38. Rd3 {[%clk 0:00:05]}  Kc5 {[%clk 0:01:50]} 39. Rxd4 {[%clk 0:00:02]}  Kxd4 {[%clk 0:01:51]} 40. Bc6 {[%clk 0:00:03]}  Bc8 {[%clk 0:01:50]} 41. fxg5 {[%clk 0:00:02]}  fxg5 {[%clk 0:01:50]} 42. Be8 {[%clk 0:00:03]}  e5 {[%clk 0:01:50]} 43. Bg6 {[%clk 0:00:03]}  e4 {[%clk 0:01:50]} 44. Bh5 {[%clk 0:00:02]}  e3+ {[%clk 0:01:49]} 45. Ke2 {[%clk 0:00:03]}  Be6 {[%clk 0:01:50]} 46. Bg6 {[%clk 0:00:03]}  Bb3 {[%clk 0:01:50]} 47. Bf5 {[%clk 0:00:01]}  Bxa4 {[%clk 0:01:51]} 48. Bg6 {[%clk 0:00:01]}  Bxb5+ {[%clk 0:01:51]} 0-1


[Site "https://www.chess.com"]

[Event "Titled Tuesday Blitz April 19 Early 2022"]
[White "Andreikin, Dmitry"]
[Black "Omelja, Artem"]
[WhiteFideId "4158814"]
[BlackFideId "14119846"]
[WhiteElo "2736"]
[BlackElo "2382"]
[Result "1-0"]
[Round "01"]
[TimeControl "180+1"]
[Date "2022.04.19"]
[WhiteClock "0:01:47"]
[BlackClock "0:00:21"]

1. d4 {[%clk 0:03:00]}  d5 {[%clk 0:02:58]} 2. c4 {[%clk 0:03:01]}  c6 {[%clk 0:02:58]} 3. Nf3 {[%clk 0:03:00]}  e6 {[%clk 0:02:56]} 4. Qc2 {[%clk 0:02:59]}  Nf6 {[%clk 0:02:55]} 5. Nbd2 {[%clk 0:02:59]}  Nbd7 {[%clk 0:02:51]} 6. g3 {[%clk 0:02:58]}  Be7 {[%clk 0:02:48]} 7. Bg2 {[%clk 0:02:58]}  O-O {[%clk 0:02:48]} 8. O-O {[%clk 0:02:58]}  b6 {[%clk 0:02:47]} 9. e4 {[%clk 0:02:56]}  dxe4 {[%clk 0:02:45]} 10. Nxe4 {[%clk 0:02:57]}  Bb7 {[%clk 0:02:45]} 11. Rd1 {[%clk 0:02:46]}  Qc8 {[%clk 0:02:28]} 12. Nxf6+ {[%clk 0:02:42]}  Nxf6 {[%clk 0:02:26]} 13. c5 {[%clk 0:02:40]}  Nd5 {[%clk 0:02:21]} 14. Bg5 {[%clk 0:02:34]}  Qd8 {[%clk 0:02:08]} 15. h4 {[%clk 0:02:33]}  h6 {[%clk 0:02:06]} 16. Bxe7 {[%clk 0:02:32]}  Qxe7 {[%clk 0:02:07]} 17. Ne5 {[%clk 0:02:32]}  Rac8 {[%clk 0:02:04]} 18. Rac1 {[%clk 0:02:31]}  Rfd8 {[%clk 0:02:04]} 19. Qa4 {[%clk 0:02:29]}  b5 {[%clk 0:01:37]} 20. Qa3 {[%clk 0:02:29]}  a5 {[%clk 0:01:32]} 21. Be4 {[%clk 0:02:26]}  a4 {[%clk 0:01:27]} 22. Qf3 {[%clk 0:02:21]}  Qf6 {[%clk 0:01:14]} 23. Qh5 {[%clk 0:02:20]}  Ne7 {[%clk 0:01:06]} 24. Ng4 {[%clk 0:02:15]}  Qxd4 {[%clk 0:00:58]} 25. Rxd4 {[%clk 0:02:14]}  Rxd4 {[%clk 0:00:59]} 26. Re1 {[%clk 0:02:06]}  Rcd8 {[%clk 0:00:41]} 27. Ne5 {[%clk 0:02:06]}  Rf8 {[%clk 0:00:36]} 28. Qf3 {[%clk 0:02:01]}  Nd5 {[%clk 0:00:33]} 29. Bxd5 {[%clk 0:02:00]}  Rxd5 {[%clk 0:00:34]} 30. g4 {[%clk 0:01:53]}  f6 {[%clk 0:00:32]} 31. Ng6 {[%clk 0:01:52]}  Re8 {[%clk 0:00:32]} 32. h5 {[%clk 0:01:51]}  Kf7 {[%clk 0:00:32]} 33. Qf4 {[%clk 0:01:50]}  e5 {[%clk 0:00:29]} 34. Qb4 {[%clk 0:01:50]}  Ra8 {[%clk 0:00:26]} 35. f4 {[%clk 0:01:50]}  exf4 {[%clk 0:00:20]} 36. Re7+ {[%clk 0:01:49]}  Kg8 {[%clk 0:00:20]} 37. Rxb7 {[%clk 0:01:49]}  Re8 {[%clk 0:00:21]} 38. Ne7+ {[%clk 0:01:48]}  Kf7 {[%clk 0:00:20]} 39. Nxd5+ {[%clk 0:01:48]}  Ke6 {[%clk 0:00:21]} 40. Qe4# {[%clk 0:01:47]} 1-0


[Site "https://www.chess.com"]

[Event "Titled Tuesday Blitz April 19 Early 2022"]
[White "Ardila, Oscar Humberto"]
[Black "Jakubowski, Krzysztof"]
[WhiteFideId "4404742"]
[BlackFideId "1112848"]
[WhiteElo "1983"]
[BlackElo "2365"]
[Result "0-1"]
[Round "01"]
[TimeControl "180+1"]
[Date "2022.04.19"]
[WhiteClock "0:00:01"]
[BlackClock "0:01:22"]

1. d4 {[%clk 0:02:14]}  Nf6 {[%clk 0:02:57]} 2. c4 {[%clk 0:02:06]}  g6 {[%clk 0:02:56]} 3. Nc3 {[%clk 0:02:05]}  Bg7 {[%clk 0:02:56]} 4. e4 {[%clk 0:02:06]}  d6 {[%clk 0:02:55]} 5. Nf3 {[%clk 0:02:06]}  O-O {[%clk 0:02:54]} 6. Be2 {[%clk 0:02:06]}  Na6 {[%clk 0:02:53]} 7. O-O {[%clk 0:02:05]}  c5 {[%clk 0:02:52]} 8. d5 {[%clk 0:02:04]}  Nc7 {[%clk 0:02:51]} 9. Bf4 {[%clk 0:02:00]}  Rb8 {[%clk 0:02:50]} 10. a4 {[%clk 0:01:59]}  b6 {[%clk 0:02:49]} 11. h3 {[%clk 0:01:58]}  a6 {[%clk 0:02:49]} 12. Bd3 {[%clk 0:01:54]}  Bd7 {[%clk 0:02:38]} 13. Qe2 {[%clk 0:01:53]}  Rb7 {[%clk 0:02:24]} 14. e5 {[%clk 0:01:50]}  Nfe8 {[%clk 0:02:23]} 15. Rfe1 {[%clk 0:01:33]}  Qb8 {[%clk 0:02:22]} 16. Bg5 {[%clk 0:01:14]}  f6 {[%clk 0:02:18]} 17. exd6 {[%clk 0:01:02]}  exd6 {[%clk 0:02:12]} 18. Bf4 {[%clk 0:01:01]}  Rf7 {[%clk 0:02:09]} 19. Ne4 {[%clk 0:00:59]}  Bf8 {[%clk 0:02:09]} 20. Qc2 {[%clk 0:00:40]}  b5 {[%clk 0:02:07]} 21. axb5 {[%clk 0:00:23]}  axb5 {[%clk 0:02:08]} 22. b3 {[%clk 0:00:21]}  bxc4 {[%clk 0:01:51]} 23. Bxc4 {[%clk 0:00:18]}  Nb5 {[%clk 0:01:46]} 24. Ra6 {[%clk 0:00:08]}  Bf5 {[%clk 0:01:35]} 25. g4 {[%clk 0:00:07]}  Bxe4 {[%clk 0:01:35]} 26. Rxe4 {[%clk 0:00:06]}  Rfe7 {[%clk 0:01:31]} 27. Rxe7 {[%clk 0:00:06]}  Rxe7 {[%clk 0:01:28]} 28. Bxb5 {[%clk 0:00:06]}  Qxb5 {[%clk 0:01:28]} 29. Rc6 {[%clk 0:00:05]}  Re2 {[%clk 0:01:26]} 30. Qc4 {[%clk 0:00:03]}  Qxc4 {[%clk 0:01:22]} 31. bxc4 {[%clk 0:00:02]}  Re4 {[%clk 0:01:23]} 32. Bxd6 {[%clk 0:00:01]}  Bxd6 {[%clk 0:01:22]} 0-1


[Site "https://www.chess.com"]

[Event "Titled Tuesday Blitz April 19 Early 2022"]
[White "Atakhan, Abtin"]
[Black "Devaev, Alexander"]
[WhiteFideId "22502203"]
[BlackFideId "4169395"]
[WhiteElo "2094"]
[BlackElo "2185"]
[Result "1-0"]
[Round "01"]
[TimeControl "180+1"]
[Date "2022.04.19"]
[WhiteClock "0:00:17"]
[BlackClock "0:00:02"]

1. c4 {[%clk 0:03:00]}  c5 {[%clk 0:02:59]} 2. g3 {[%clk 0:02:59]}  e6 {[%clk 0:02:59]} 3. Bg2 {[%clk 0:03:00]}  Nf6 {[%clk 0:02:59]} 4. Nf3 {[%clk 0:02:58]}  Nc6 {[%clk 0:03:00]} 5. O-O {[%clk 0:02:55]}  Be7 {[%clk 0:03:00]} 6. b3 {[%clk 0:02:55]}  O-O {[%clk 0:02:59]} 7. Bb2 {[%clk 0:02:55]}  a6 {[%clk 0:02:59]} 8. e3 {[%clk 0:02:52]}  Rb8 {[%clk 0:02:54]} 9. Qe2 {[%clk 0:02:47]}  b5 {[%clk 0:02:47]} 10. Na3 {[%clk 0:02:42]}  bxc4 {[%clk 0:02:30]} 11. Nxc4 {[%clk 0:02:41]}  a5 {[%clk 0:02:30]} 12. Rfc1 {[%clk 0:02:34]}  Ba6 {[%clk 0:02:25]} 13. d3 {[%clk 0:02:31]}  Qc7 {[%clk 0:02:15]} 14. Rab1 {[%clk 0:02:21]}  Rfc8 {[%clk 0:02:09]} 15. Bc3 {[%clk 0:02:20]}  Nd5 {[%clk 0:02:00]} 16. Bd2 {[%clk 0:02:15]}  Ra8 {[%clk 0:01:34]} 17. a3 {[%clk 0:02:14]}  Bb5 {[%clk 0:01:28]} 18. Ne1 {[%clk 0:02:01]}  a4 {[%clk 0:01:11]} 19. bxa4 {[%clk 0:02:01]}  Bxa4 {[%clk 0:01:11]} 20. Bxd5 {[%clk 0:01:59]}  exd5 {[%clk 0:01:11]} 21. Nb6 {[%clk 0:02:00]}  Rcb8 {[%clk 0:01:06]} 22. Nxa8 {[%clk 0:01:57]}  Rxa8 {[%clk 0:01:06]} 23. Bc3 {[%clk 0:01:56]}  Nd8 {[%clk 0:00:44]} 24. e4 {[%clk 0:01:40]}  Bc6 {[%clk 0:00:40]} 25. Nf3 {[%clk 0:01:27]}  d4 {[%clk 0:00:34]} 26. Bd2 {[%clk 0:01:21]}  Rxa3 {[%clk 0:00:27]} 27. Bf4 {[%clk 0:01:18]}  d6 {[%clk 0:00:23]} 28. Ra1 {[%clk 0:01:10]}  Qa7 {[%clk 0:00:18]} 29. Qb2 {[%clk 0:01:07]}  Rxa1 {[%clk 0:00:17]} 30. Rxa1 {[%clk 0:01:08]}  Qc7 {[%clk 0:00:17]} 31. Ra6 {[%clk 0:00:53]}  h6 {[%clk 0:00:12]} 32. Qb6 {[%clk 0:00:51]}  Qd7 {[%clk 0:00:12]} 33. Bc1 {[%clk 0:00:40]}  f5 {[%clk 0:00:10]} 34. Nd2 {[%clk 0:00:39]}  fxe4 {[%clk 0:00:09]} 35. Nxe4 {[%clk 0:00:39]}  Qe6 {[%clk 0:00:07]} 36. f3 {[%clk 0:00:25]}  d5 {[%clk 0:00:08]} 37. Qb3 {[%clk 0:00:22]}  Qf5 {[%clk 0:00:06]} 38. Nd2 {[%clk 0:00:20]}  Kh7 {[%clk 0:00:05]} 39. Ra2 {[%clk 0:00:18]}  Qd7 {[%clk 0:00:03]} 40. Qd1 {[%clk 0:00:18]}  Bb5 {[%clk 0:00:03]} 41. Nf1 {[%clk 0:00:18]}  Bf6 {[%clk 0:00:03]} 42. Rb2 {[%clk 0:00:18]}  Ne6 {[%clk 0:00:03]} 43. Qe2 {[%clk 0:00:18]}  c4 {[%clk 0:00:03]} 44. Rxb5 {[%clk 0:00:18]}  Qxb5 {[%clk 0:00:02]} 45. Qxe6 {[%clk 0:00:19]}  cxd3 {[%clk 0:00:01]} 46. Qf5+ {[%clk 0:00:19]}  Kg8 {[%clk 0:00:01]} 47. Bd2 {[%clk 0:00:20]}  Qc4 {[%clk 0:00:02]} 48. g4 {[%clk 0:00:19]}  Qc2 {[%clk 0:00:02]} 49. Qxd5+ {[%clk 0:00:20]}  Kh7 {[%clk 0:00:01]} 50. Qe4+ {[%clk 0:00:20]}  Kg8 {[%clk 0:00:02]} 51. Kg2 {[%clk 0:00:20]}  Bg5 {[%clk 0:00:02]} 52. Qe1 {[%clk 0:00:17]} 1-0


[Site "https://www.chess.com"]

[Event "Titled Tuesday Blitz April 19 Early 2022"]
[White "Avazkhonov, Alikhon"]
[Black "Gabrielian, Artur"]
[WhiteFideId "14208504"]
[BlackFideId "4131002"]
[WhiteElo "1739"]
[BlackElo "2440"]
[Result "0-1"]
[Round "01"]
[TimeControl "180+1"]
[Date "2022.04.19"]
[WhiteClock "0:00:07"]
[BlackClock "0:01:06"]

1. e4 {[%clk 0:02:56]}  e5 {[%clk 0:02:59]} 2. Nf3 {[%clk 0:02:56]}  Nc6 {[%clk 0:02:58]} 3. Bb5 {[%clk 0:02:56]}  a6 {[%clk 0:02:58]} 4. Ba4 {[%clk 0:02:57]}  d6 {[%clk 0:02:58]} 5. O-O {[%clk 0:02:53]}  Bd7 {[%clk 0:02:57]} 6. c3 {[%clk 0:02:52]}  g6 {[%clk 0:02:57]} 7. d4 {[%clk 0:02:51]}  Bg7 {[%clk 0:02:57]} 8. d5 {[%clk 0:02:50]}  Nce7 {[%clk 0:02:56]} 9. Bxd7+ {[%clk 0:02:45]}  Qxd7 {[%clk 0:02:56]} 10. c4 {[%clk 0:02:46]}  h6 {[%clk 0:02:55]} 11. Nc3 {[%clk 0:02:41]}  f5 {[%clk 0:02:54]} 12. Ne1 {[%clk 0:02:40]}  Nf6 {[%clk 0:02:48]} 13. f3 {[%clk 0:02:40]}  O-O {[%clk 0:02:48]} 14. Nd3 {[%clk 0:02:40]}  f4 {[%clk 0:02:32]} 15. Bd2 {[%clk 0:02:35]}  g5 {[%clk 0:02:32]} 16. Be1 {[%clk 0:02:34]}  Ng6 {[%clk 0:02:29]} 17. Bf2 {[%clk 0:02:32]}  g4 {[%clk 0:02:28]} 18. Kh1 {[%clk 0:02:18]}  h5 {[%clk 0:02:12]} 19. b4 {[%clk 0:01:58]}  Rf7 {[%clk 0:02:11]} 20. c5 {[%clk 0:01:55]}  Bf8 {[%clk 0:02:11]} 21. Rc1 {[%clk 0:01:50]}  Rg7 {[%clk 0:02:10]} 22. cxd6 {[%clk 0:01:33]}  cxd6 {[%clk 0:02:10]} 23. Na4 {[%clk 0:01:31]}  Re8 {[%clk 0:02:06]} 24. Nb6 {[%clk 0:01:17]}  Qf7 {[%clk 0:02:06]} 25. Qe2 {[%clk 0:00:53]}  g3 {[%clk 0:02:02]} 26. hxg3 {[%clk 0:00:50]}  fxg3 {[%clk 0:02:02]} 27. Bxg3 {[%clk 0:00:51]}  h4 {[%clk 0:02:03]} 28. Bh2 {[%clk 0:00:50]}  Nh5 {[%clk 0:02:03]} 29. f4 {[%clk 0:00:43]}  Ng3+ {[%clk 0:02:00]} 30. Bxg3 {[%clk 0:00:41]}  hxg3 {[%clk 0:02:00]} 31. Qg4 {[%clk 0:00:31]}  Nxf4 {[%clk 0:01:54]} 32. Rxf4 {[%clk 0:00:24]}  Rxg4 {[%clk 0:01:49]} 33. Rxg4+ {[%clk 0:00:16]}  Bg7 {[%clk 0:01:48]} 34. Rxg3 {[%clk 0:00:16]}  Rf8 {[%clk 0:01:43]} 35. Kg1 {[%clk 0:00:15]}  Kh7 {[%clk 0:01:41]} 36. Rh3+ {[%clk 0:00:14]}  Bh6 {[%clk 0:01:42]} 37. Rc2 {[%clk 0:00:10]}  Qg6 {[%clk 0:01:27]} 38. Rc7+ {[%clk 0:00:09]}  Rf7 {[%clk 0:01:27]} 39. Nd7 {[%clk 0:00:08]}  Kg7 {[%clk 0:01:22]} 40. N7xe5 {[%clk 0:00:07]}  dxe5 {[%clk 0:01:18]} 41. Nxe5 {[%clk 0:00:07]}  Qb6+ {[%clk 0:01:06]} 0-1


[Site "https://www.chess.com"]

[Event "Titled Tuesday Blitz April 19 Early 2022"]
[White "Belenkaya, Dina"]
[Black "Kezin, Roman"]
[WhiteFideId "24142654"]
[BlackFideId "24124621"]
[WhiteElo "2196"]
[BlackElo "2570"]
[Result "0-1"]
[Round "01"]
[TimeControl "180+1"]
[Date "2022.04.19"]
[WhiteClock "0:00:09"]
[BlackClock "0:00:57"]

1. e4 {[%clk 0:02:57]}  c6 {[%clk 0:03:00]} 2. d3 {[%clk 0:02:54]}  g6 {[%clk 0:02:59]} 3. Nd2 {[%clk 0:02:50]}  Bg7 {[%clk 0:02:59]} 4. g3 {[%clk 0:02:51]}  d5 {[%clk 0:02:59]} 5. Bg2 {[%clk 0:02:51]}  e5 {[%clk 0:02:59]} 6. Ngf3 {[%clk 0:02:47]}  Ne7 {[%clk 0:03:00]} 7. O-O {[%clk 0:02:47]}  O-O {[%clk 0:03:01]} 8. Re1 {[%clk 0:02:47]}  Qc7 {[%clk 0:02:58]} 9. b3 {[%clk 0:02:37]}  d4 {[%clk 0:02:54]} 10. a4 {[%clk 0:02:35]}  c5 {[%clk 0:02:54]} 11. a5 {[%clk 0:02:33]}  Nbc6 {[%clk 0:02:53]} 12. Nc4 {[%clk 0:02:32]}  Rb8 {[%clk 0:02:53]} 13. Nh4 {[%clk 0:02:12]}  b5 {[%clk 0:02:52]} 14. axb6 {[%clk 0:02:10]}  axb6 {[%clk 0:02:53]} 15. f4 {[%clk 0:02:11]}  b5 {[%clk 0:02:52]} 16. Nxe5 {[%clk 0:02:10]}  Nxe5 {[%clk 0:02:52]} 17. fxe5 {[%clk 0:02:11]}  Nc6 {[%clk 0:02:52]} 18. Bf4 {[%clk 0:01:57]}  Bxe5 {[%clk 0:02:48]} 19. Qd2 {[%clk 0:01:55]}  Be6 {[%clk 0:02:43]} 20. Ra6 {[%clk 0:01:45]}  f6 {[%clk 0:02:29]} 21. Nf3 {[%clk 0:01:36]}  Ra8 {[%clk 0:02:20]} 22. Rea1 {[%clk 0:01:09]}  Qb7 {[%clk 0:02:18]} 23. Rxa8 {[%clk 0:00:59]}  Rxa8 {[%clk 0:02:19]} 24. Rxa8+ {[%clk 0:00:56]}  Qxa8 {[%clk 0:02:20]} 25. Bxe5 {[%clk 0:00:33]}  fxe5 {[%clk 0:02:03]} 26. Ng5 {[%clk 0:00:32]}  Bd7 {[%clk 0:01:56]} 27. Qf2 {[%clk 0:00:27]}  Qe8 {[%clk 0:01:56]} 28. Bh3 {[%clk 0:00:25]}  Bxh3 {[%clk 0:01:52]} 29. Nxh3 {[%clk 0:00:26]}  Qf8 {[%clk 0:01:51]} 30. Qe2 {[%clk 0:00:19]}  Nb4 {[%clk 0:01:37]} 31. Nf2 {[%clk 0:00:20]}  h5 {[%clk 0:01:30]} 32. Nh3 {[%clk 0:00:20]}  Qf6 {[%clk 0:01:30]} 33. Kg2 {[%clk 0:00:20]}  Kg7 {[%clk 0:01:29]} 34. Ng1 {[%clk 0:00:21]}  Qg5 {[%clk 0:01:19]} 35. Nf3 {[%clk 0:00:20]}  Qc1 {[%clk 0:01:19]} 36. Ne1 {[%clk 0:00:21]}  Na2 {[%clk 0:01:14]} 37. Nf3 {[%clk 0:00:20]}  Nc3 {[%clk 0:01:11]} 38. Qf2 {[%clk 0:00:19]}  Nd1 {[%clk 0:01:11]} 39. Qe2 {[%clk 0:00:17]}  Ne3+ {[%clk 0:01:09]} 40. Kh3 {[%clk 0:00:15]}  Qxc2 {[%clk 0:01:07]} 41. Qxc2 {[%clk 0:00:15]}  Nxc2 {[%clk 0:01:08]} 42. Nxe5 {[%clk 0:00:16]}  Na1 {[%clk 0:01:07]} 43. b4 {[%clk 0:00:07]}  cxb4 {[%clk 0:01:08]} 44. Nf3 {[%clk 0:00:06]}  b3 {[%clk 0:01:01]} 45. Nd2 {[%clk 0:00:05]}  b2 {[%clk 0:01:01]} 46. Kg2 {[%clk 0:00:05]}  Nb3 {[%clk 0:00:59]} 47. Nb1 {[%clk 0:00:05]}  Nc5 {[%clk 0:00:59]} 48. Kf2 {[%clk 0:00:05]}  Nxd3+ {[%clk 0:01:00]} 49. Ke2 {[%clk 0:00:06]}  Nc5 {[%clk 0:00:57]} 50. Kd2 {[%clk 0:00:05]}  Nxe4+ {[%clk 0:00:57]} 51. Kd3 {[%clk 0:00:06]}  Nc3 {[%clk 0:00:57]} 52. Na3 {[%clk 0:00:06]}  b4 {[%clk 0:00:57]} 53. Kxd4 {[%clk 0:00:05]}  bxa3 {[%clk 0:00:57]} 54. Kxc3 {[%clk 0:00:06]}  b1=Q {[%clk 0:00:57]} 55. Kd2 {[%clk 0:00:07]}  a2 {[%clk 0:00:57]} 56. Ke3 {[%clk 0:00:08]}  a1=Q {[%clk 0:00:58]} 57. Kf4 {[%clk 0:00:09]}  Qd4+ {[%clk 0:00:57]} 58. Kg5 {[%clk 0:00:09]}  Qf5# {[%clk 0:00:57]} 0-1


[Site "https://www.chess.com"]

[Event "Titled Tuesday Blitz April 19 Early 2022"]
[White "Belozerov, Andrei"]
[Black "Marin Masis, Jose Esteban"]
[WhiteFideId "4120213"]
[BlackFideId "6508146"]
[WhiteElo "2320"]
[BlackElo "1710"]
[Result "1-0"]
[Round "01"]
[TimeControl "180+1"]
[Date "2022.04.19"]
[WhiteClock "0:01:09"]
[BlackClock "0:00:09"]

1. e4 {[%clk 0:02:58]}  c5 {[%clk 0:02:56]} 2. Nf3 {[%clk 0:02:58]}  Nc6 {[%clk 0:02:50]} 3. d4 {[%clk 0:02:58]}  cxd4 {[%clk 0:02:48]} 4. Nxd4 {[%clk 0:02:59]}  Nf6 {[%clk 0:02:46]} 5. Nc3 {[%clk 0:02:59]}  e5 {[%clk 0:02:46]} 6. Ndb5 {[%clk 0:02:59]}  d6 {[%clk 0:02:45]} 7. Bg5 {[%clk 0:02:59]}  a6 {[%clk 0:02:40]} 8. Na3 {[%clk 0:03:00]}  b5 {[%clk 0:02:36]} 9. Nd5 {[%clk 0:02:59]}  Be7 {[%clk 0:02:27]} 10. Bxf6 {[%clk 0:02:59]}  Bxf6 {[%clk 0:02:24]} 11. c3 {[%clk 0:02:59]}  O-O {[%clk 0:02:22]} 12. Nc2 {[%clk 0:02:58]}  Bg5 {[%clk 0:02:19]} 13. a4 {[%clk 0:02:58]}  bxa4 {[%clk 0:02:17]} 14. Rxa4 {[%clk 0:02:58]}  a5 {[%clk 0:02:17]} 15. Bc4 {[%clk 0:02:58]}  Rb8 {[%clk 0:02:16]} 16. b3 {[%clk 0:02:56]}  Kh8 {[%clk 0:02:14]} 17. Nce3 {[%clk 0:02:54]}  Ne7 {[%clk 0:02:10]} 18. Nxe7 {[%clk 0:02:52]}  Qxe7 {[%clk 0:02:11]} 19. Nd5 {[%clk 0:02:52]}  Qd8 {[%clk 0:02:08]} 20. O-O {[%clk 0:02:52]}  f5 {[%clk 0:02:07]} 21. exf5 {[%clk 0:02:50]}  Bxf5 {[%clk 0:02:06]} 22. Qe2 {[%clk 0:02:49]}  Bd7 {[%clk 0:02:04]} 23. Ra2 {[%clk 0:02:47]}  Be6 {[%clk 0:02:02]} 24. Rfa1 {[%clk 0:02:46]}  Qc8 {[%clk 0:00:56]} 25. Rxa5 {[%clk 0:02:32]}  Bd8 {[%clk 0:00:54]} 26. Ra6 {[%clk 0:02:09]}  Bxd5 {[%clk 0:00:47]} 27. Bxd5 {[%clk 0:02:09]}  Qxc3 {[%clk 0:00:47]} 28. Qe3 {[%clk 0:01:45]}  Qxe3 {[%clk 0:00:21]} 29. fxe3 {[%clk 0:01:46]}  Bb6 {[%clk 0:00:21]} 30. Re1 {[%clk 0:01:44]}  Bc5 {[%clk 0:00:20]} 31. g3 {[%clk 0:01:38]}  Rf6 {[%clk 0:00:20]} 32. Kg2 {[%clk 0:01:36]}  Rbf8 {[%clk 0:00:20]} 33. Re2 {[%clk 0:01:36]}  h5 {[%clk 0:00:19]} 34. h4 {[%clk 0:01:35]}  Kh7 {[%clk 0:00:19]} 35. Ra4 {[%clk 0:01:22]}  Rf1 {[%clk 0:00:12]} 36. b4 {[%clk 0:01:18]}  Bb6 {[%clk 0:00:12]} 37. Ra6 {[%clk 0:01:17]}  Bc7 {[%clk 0:00:13]} 38. Rc6 {[%clk 0:01:15]}  Bb8 {[%clk 0:00:10]} 39. Be4+ {[%clk 0:01:14]}  g6 {[%clk 0:00:09]} 40. b5 {[%clk 0:01:10]}  Rc1 {[%clk 0:00:09]} 41. Rxc1 {[%clk 0:01:09]} 1-0


[Site "https://www.chess.com"]